bitfinex-derivatives/quotes_SOLF0:USTF0_20250625
["timestamp","ask_amount","ask_price","bid_price","bid_amount"]
[1750838250590,4.1316688,146.97,146.96,6.801]
[1750838250786,40.6603,146.98,146.96,6.28991411]
[1750838250787,33.86,146.98,146.96,6.28991411]
[1750838250987,33.86,146.98,146.97,6.28500813]
[1750838251184,40.6601,146.98,146.97,6.28500813]
[1750838253084,33.86,146.98,146.97,13.08560813]
[1750838253287,33.86,146.98,146.97,6.8006]
[1750838253492,33.86,146.98,146.97,13.07972974]
[1750838254182,10.13578504,146.99,146.97,6.8006]
[1750838254183,3.33588504,146.99,146.97,6.8006]
[1750838254387,3.33588504,146.99,146.98,6.27803534]
[1750838254986,43.99488504,147.01,146.98,13.07813534]
[1750838256190,43.99488504,147.01,146.99,6.7996]
[1750838256491,43.99488504,147.01,146.99,13.07763534]
[1750838257192,37.19588504,147.01,146.99,13.07763534]
[1750838257389,37.19588504,147.01,147.0,6.7992]
[1750838257692,6.7984,147.02,147.0,6.7992]
[1750838257889,6.7984,147.02,147.0,13.07723534]
[1750838258089,10.13388504,147.03,147.0,13.07723534]
[1750838258488,40.6374,147.04,147.0,6.27803534]
[1750838258694,40.6374,147.04,147.01,6.27803534]
[1750838259095,40.6374,147.04,147.01,13.07643534]
[1750838260487,6.7978,147.03,147.01,6.7984]
[1750838260791,10.13368504,147.03,147.01,6.7984]
[1750838262395,10.13368504,147.03,147.0,13.07703534]
[1750838263497,3.33588504,147.01,146.99,8.60663534]
[1750838263998,3.33588504,147.01,146.99,15.40593534]
[1750838264592,10.13388504,147.03,146.99,8.60663534]
[1750838265097,10.13388504,147.03,147.0,6.799]
[1750838269502,10.13388504,147.03,147.01,6.7987]
[1750838270402,3.33588504,147.03,147.01,6.7987]
[1750838273204,40.6376,147.04,147.02,6.7983]
[1750838275200,33.84,147.04,147.02,6.7983]
[1750838276606,131.16,147.07,146.99,42.37410008]
[1750838276607,37.13588504,147.07,146.99,42.37410008]
[1750838276900,37.13588504,147.07,147.01,6.24550008]
[1750838276901,43.93208504,147.07,147.01,6.24550008]
[1750838277099,43.93208504,147.07,147.04,6.797]
[1750838277495,37.13588504,147.07,147.01,6.24550008]
[1750838277701,37.13588504,147.07,147.02,6.24550008]
[1750838277994,10.13368504,147.03,147.02,6.24550008]
[1750838278197,3.33588504,147.03,147.01,6.7985]
[1750838278600,10.13378504,147.03,147.01,6.7985]
[1750838279601,10.13378504,147.03,147.0,6.799]
[1750838281411,6.7983,147.02,147.0,6.799]
[1750838283500,6.7987,147.01,146.99,9.128]
[1750838283808,3.33588504,147.02,146.99,2.3286]
[1750838284205,10.13418504,147.02,147.0,6.799]
[1750838289303,3.33588504,147.02,146.99,8.57410008]
[1750838289511,3.33588504,147.02,146.98,6.24550008]
[1750838289709,3.33588504,147.02,146.98,13.04540008]
[1750838289911,6.7988,147.01,146.98,13.04540008]
[1750838290714,6.7992,147.0,146.98,13.04540008]
[1750838291610,6.7992,147.0,146.99,6.24550008]
[1750838291916,6.799,147.01,146.99,13.04510008]
[1750838293114,6.799,147.01,146.99,6.24550008]
[1750838293519,6.7992,147.0,146.99,6.24550008]
[1750838295516,6.7992,147.0,146.98,15.16986947]
[1750838297718,6.7992,147.0,146.99,6.7996]
[1750838298021,6.7992,147.0,146.98,8.36996947]
[1750838298205,6.7989,147.01,146.98,8.36996947]
[1750838298407,6.7989,147.01,147.0,6.27589001]
[1750838302514,6.7989,147.01,146.98,8.36996947]
[1750838302515,3.33588504,147.02,146.98,6.27589001]
[1750838302723,3.33588504,146.99,146.98,6.27589001]
[1750838302922,43.91548504,146.99,146.98,6.27589001]
[1750838304423,43.91548504,146.99,146.97,13.07639001]
[1750838306920,43.91548504,146.99,146.97,6.27589001]
[1750838307118,6.8001,146.98,146.97,6.27589001]
[1750838308927,6.8006,146.97,146.96,6.27589001]
[1750838309134,10.13648504,146.97,146.96,6.27589001]
[1750838309825,6.801,146.96,146.95,6.27589001]
[1750838316233,8.93400452,146.96,146.95,6.27589001]
[1750838318334,2.13300452,146.96,146.95,13.07739001]
[1750838318630,2.13300452,147.0,146.95,10.50297399]
[1750838318937,2.13300452,147.0,146.98,6.26877473]
[1750838319433,33.76,147.01,146.98,10.49137083]
[1750838319631,2.13300452,147.02,147.0,6.26650771]
[1750838321030,2.13300452,147.02,147.0,13.06530771]
[1750838322132,8.93150452,147.02,147.0,13.06530771]
[1750838322438,6.7985,147.02,147.0,13.06530771]
[1750838324635,6.7985,147.02,147.01,6.26650771]
[1750838326238,6.7985,147.02,147.0,13.06530771]
[1750838326536,6.7983,147.02,147.01,6.26650771]
[1750838328436,6.7983,147.02,147.0,13.06560771]
[1750838329440,6.7983,147.02,147.01,6.26650771]
[1750838332241,6.7983,147.02,147.0,6.26650771]
[1750838333645,6.7983,147.02,147.01,6.26650771]
[1750838334343,6.7983,147.02,147.0,6.26650771]
[1750838334737,6.7987,147.01,147.0,6.26650771]
[1750838339438,6.7992,147.0,146.99,8.45130771]
[1750838342639,6.7992,147.0,146.99,2.1848]
[1750838343644,6.7992,147.0,146.99,8.45130771]
[1750838343836,6.7992,147.0,146.99,6.26650771]
[1750838344043,6.7996,146.99,146.98,6.26650771]
[1750838344235,8.93144261,146.99,146.98,6.26650771]
[1750838344435,8.93144261,146.99,146.97,15.15866631]
[1750838344436,8.93144261,146.99,146.97,6.8003]
[1750838346152,8.93144261,146.99,146.98,6.27145228]
[1750838346745,6.8001,146.98,146.97,6.27145228]
[1750838346944,8.93194261,146.98,146.97,6.27145228]
[1750838347547,6.8006,146.97,146.96,6.27145228]
[1750838347745,8.93244261,146.97,146.96,6.27145228]
[1750838347940,2.13184261,146.97,146.96,6.801]
[1750838348146,2.13184261,146.97,146.95,10.58153638]
[1750838348343,4.37162926,146.99,146.96,6.27390896]
[1750838348549,2.13184261,147.0,146.98,13.07400896]
[1750838348849,8.93084261,147.01,146.99,6.27093827]
[1750838349049,8.93084261,147.01,146.99,13.07033827]
[1750838349450,2.13184261,147.0,146.99,13.07033827]
[1750838352247,10.12985439,147.01,146.99,13.07033827]
[1750838353950,3.33085439,147.01,146.99,13.07033827]
[1750838354556,3.33085439,147.01,147.0,6.7992]
[1750838355554,4.37018263,147.02,147.0,6.7992]
[1750838355750,37.03085439,147.03,147.0,6.7992]
[1750838355950,6.7986,147.02,147.0,13.07013827]
[1750838356557,6.7986,147.02,147.01,6.27093827]
[1750838357955,11.17139711,147.02,147.0,6.27093827]
[1750838358145,6.7986,147.02,147.0,6.27093827]
[1750838359658,4.38301031,147.01,147.0,13.07003827]
[1750838360262,4.38301031,147.01,147.0,6.27093827]
[1750838361461,4.38301031,147.01,146.99,6.7994]
[1750838361462,4.38301031,147.01,146.99,15.16133638]
[1750838361658,6.7986,147.02,147.0,6.7989]
[1750838361857,10.12945439,147.02,147.01,6.28671905]
[1750838362056,14.51283585,147.02,147.01,6.28671905]
[1750838362861,14.5177776,147.02,147.01,6.28671905]
[1750838365865,6.7987,147.01,147.0,6.28671905]
[1750838366063,11.18694657,147.01,147.0,6.28671905]
[1750838366464,14.51837854,147.01,147.0,6.28671905]
[1750838368271,14.51837854,147.01,146.99,15.16133638]
[1750838368461,4.38824657,147.0,146.99,15.16133638]
[1750838368662,10.13013197,147.01,146.99,15.16133638]
[1750838368863,4.38453234,147.0,146.99,15.16133638]
[1750838371863,4.38478225,147.0,146.99,15.16133638]
[1750838372270,6.51655566,147.0,146.99,15.16133638]
[1750838373167,13.31575566,147.0,146.99,8.36193638]
[1750838373368,6.51655566,147.0,146.99,6.29847659]
[1750838373869,13.31575566,147.0,146.99,6.29847659]
[1750838374675,8.93097341,147.0,146.99,6.29847659]
[1750838374874,13.314563,147.0,146.99,6.29847659]
[1750838375275,13.3150747,147.0,146.99,6.29847659]
[1750838375673,6.5158747,147.0,146.99,13.09807659]
[1750838375981,4.38358959,147.0,146.99,15.16153638]
[1750838376680,2.13228511,147.02,147.01,6.7987]
[1750838376978,2.13228511,147.02,147.01,15.19111578]
[1750838378381,6.7981,147.03,147.01,15.19111578]
[1750838378577,6.7981,147.03,147.02,6.29405602]
[1750838380186,43.84740869,147.04,147.02,13.09225602]
[1750838380384,43.84740869,147.04,147.02,6.29405602]
[1750838380780,6.7978,147.03,147.02,6.29405602]
[1750838381684,37.04990869,147.04,147.02,6.29405602]
[1750838382777,6.7978,147.03,147.02,6.29405602]
[1750838383682,37.04990869,147.04,147.02,6.29405602]
[1750838383683,43.84760869,147.04,147.02,6.29405602]
[1750838384083,37.04990869,147.04,147.02,6.29405602]
[1750838384685,43.84750869,147.04,147.02,6.29405602]
[1750838385382,43.84750869,147.04,147.02,13.09225602]
[1750838387383,37.04990869,147.04,147.03,6.7978]
[1750838387685,33.72,147.04,147.03,13.09185602]
[1750838388077,33.72,147.04,147.03,13.08691809]
[1750838388485,38.02771588,147.04,147.03,13.08691809]
[1750838389494,38.02770913,147.04,147.03,13.08691809]
[1750838393090,38.02770913,147.04,147.03,6.28911809]
[1750838394193,44.82500913,147.04,147.03,6.28911809]
[1750838395392,44.82500913,147.04,147.02,13.08721809]
[1750838395584,11.1044964,147.03,147.02,13.08721809]
[1750838395789,14.43440509,147.03,147.02,6.28911809]
[1750838396082,7.63660509,147.03,147.01,6.28911809]
[1750838396395,11.1049964,147.02,147.01,6.28911809]
[1750838396895,11.1049964,147.02,147.0,6.28911809]
[1750838397094,4.3066964,147.01,147.0,6.28911809]
[1750838397994,4.3066964,147.01,147.0,13.08831809]
[1750838398294,6.43847345,147.01,147.0,13.08831809]
[1750838398896,4.3066964,147.01,147.0,13.08831809]
[1750838399090,2.13177705,147.01,147.0,6.7992]
[1750838400401,6.7983,147.02,147.0,6.7992]
[1750838400898,6.798,147.03,147.0,6.7992]
[1750838401198,4.3011095,147.02,147.01,6.28703723]
[1750838401507,11.0994095,147.02,147.01,6.28703723]
[1750838401994,4.3011155,147.02,147.01,6.28703723]
[1750838403999,33.72,147.04,147.01,6.28703723]
[1750838404295,4.30044922,147.03,147.02,6.28703723]
[1750838404497,4.30044922,147.03,147.01,8.3827163]
[1750838404696,33.72,147.04,147.01,8.3827163]
[1750838404900,33.72,147.04,147.03,6.28571]
[1750838405101,38.0188646,147.04,147.03,6.28571]
[1750838405399,44.8161646,147.04,147.03,6.28571]
[1750838405601,38.0188646,147.04,147.03,6.28571]
[1750838406101,6.7964,147.06,147.04,6.797]
[1750838406397,6.7964,147.06,147.05,6.2831531]
[1750838406600,11.0948881,147.06,147.05,6.2831531]
[1750838407111,11.0948881,147.06,147.05,13.0800531]
[1750838407112,4.2984881,147.06,147.05,13.0800531]
[1750838407504,40.4762,147.07,147.05,13.0800531]
[1750838407699,4.2961335,147.06,147.05,13.0800531]
[1750838408104,33.68,147.07,147.06,6.7964]
[1750838408305,37.9730691,147.07,147.06,6.7964]
[1750838408903,37.9730691,147.07,147.05,13.0797531]
[1750838409100,33.68,147.07,147.05,13.0797531]
[1750838409807,37.9695478,147.07,147.06,6.7964]
[1750838410407,33.68,147.07,147.06,13.0795531]
[1750838410712,33.68,147.07,147.06,6.2831531]
[1750838411514,33.68,147.07,147.06,13.0795531]
[1750838412212,33.68,147.07,147.06,6.7964]
[1750838412711,33.68,147.07,147.05,13.0797531]
[1750838413707,33.68,147.07,147.06,6.7964]
[1750838415520,40.4348,147.1,147.07,6.7957]
[1750838415709,4.2918054,147.09,147.07,6.2703549]
[1750838415914,11.0870054,147.09,147.07,6.2703549]
[1750838416214,6.7952,147.09,147.07,6.7957]
[1750838416622,6.7952,147.09,147.07,13.0660549]
[1750838416916,6.7952,147.09,147.07,6.7957]
[1750838417417,11.0847722,147.09,147.07,6.7957]
[1750838418916,6.7952,147.09,147.07,6.7957]
[1750838419709,11.1041701,147.09,147.07,6.7957]
[1750838420119,6.7952,147.09,147.07,6.7957]
[1750838420505,6.7952,147.09,147.07,13.0660549]
[1750838420918,11.1041469,147.09,147.07,13.0660549]
[1750838421117,11.1041469,147.09,147.07,6.7957]
[1750838421719,6.7952,147.09,147.07,13.0660549]
[1750838421914,40.4348,147.1,147.08,6.7955]
[1750838422313,33.64,147.1,147.07,6.2703549]
[1750838422615,33.64,147.1,147.08,6.2703549]
[1750838422811,37.9487613,147.13,147.09,6.7947]
[1750838423010,4.3087613,147.12,147.09,6.7947]
[1750838423214,4.3087613,147.11,147.09,6.7947]
[1750838423411,6.7943,147.11,147.09,6.7947]
[1750838424018,4.3087613,147.12,147.08,6.2703549]
[1750838424217,4.3087613,147.11,147.07,10.7246549]
[1750838424413,33.64,147.13,147.07,10.7246549]
[1750838424414,4.3087613,147.12,147.08,6.2703549]
[1750838424815,33.64,147.13,147.08,13.0656549]
[1750838425114,37.9487613,147.13,147.08,13.0656549]
[1750838425305,33.64,147.13,147.08,13.0656549]
[1750838425506,6.7948,147.1,147.08,13.0656549]
[1750838426219,6.7948,147.1,147.08,6.7953]
[1750838431514,6.7943,147.11,147.09,6.795]
[1750838431920,3.32615937,147.12,147.07,10.7246549]
[1750838432121,3.32615937,147.12,147.08,6.2703549]
[1750838432524,6.7944,147.11,147.09,6.7948]
[1750838434020,10.12015937,147.12,147.09,6.7948]
[1750838434322,33.64,147.13,147.08,6.2703549]
[1750838434323,2.12839029,147.1,147.08,6.2703549]
[1750838434519,2.12839029,147.09,147.08,6.2703549]
[1750838435426,2.12839029,147.09,147.07,17.5202549]
[1750838435722,2.12839029,147.09,147.07,10.7246549]
[1750838435922,2.12839029,147.09,147.07,17.5203549]
[1750838436722,2.12839029,147.08,147.07,10.7246549]
[1750838436924,2.12839029,147.08,147.07,6.2703549]
[1750838437324,2.12839029,147.08,147.05,6.2703549]
[1750838437529,2.12839029,147.06,147.04,6.2703549]
[1750838437723,2.12839029,147.05,147.04,6.2703549]
[1750838438029,35.74839029,147.05,147.03,6.2703549]
[1750838438231,36.94945896,147.05,147.03,6.2703549]
[1750838438429,6.7973,147.04,147.02,6.2703549]
[1750838439135,6.7973,147.04,147.02,13.0685549]
[1750838439430,43.74655896,147.05,147.02,13.0685549]
[1750838440533,43.74655896,147.05,147.03,6.2703549]
[1750838441237,36.94945896,147.05,147.03,6.2703549]
[1750838441530,36.94945896,147.05,147.0,6.26599123]
[1750838441725,3.32945896,147.02,147.0,6.26599123]
[1750838442321,6.7987,147.01,147.0,6.26599123]
[1750838444638,10.12795896,147.02,147.0,6.26599123]
[1750838445033,6.7987,147.01,147.0,6.26599123]
[1750838445729,6.7987,147.01,146.97,8.3827163]
[1750838446132,6.7987,147.01,146.99,6.7996]
[1750838447534,10.12815896,147.02,146.99,6.7994]
[1750838448237,6.7989,147.01,146.99,6.7994]
[1750838454842,6.7989,147.01,146.97,8.3827163]
[1750838455749,6.7989,147.01,146.98,6.8]
[1750838456041,6.7989,147.01,146.97,8.3827163]
[1750838457143,6.7989,147.01,146.98,6.8]
[1750838457345,3.32945896,147.02,146.97,8.3827163]
[1750838457847,6.7989,147.01,146.98,6.7999]
[1750838458841,3.32945896,147.02,146.98,6.7999]
[1750838459345,6.7992,147.01,146.98,6.7999]
[1750838459848,3.32945896,147.02,146.98,6.7999]
[1750838460144,6.7988,147.01,146.98,6.7999]
[1750838460345,3.32945896,147.02,146.98,6.7999]
[1750838460654,6.42380403,147.07,146.97,8.3827163]
[1750838460946,33.62,147.1,147.02,11.71217526]
[1750838461242,33.62,147.11,147.04,3.32945896]
[1750838461450,6.7948,147.1,147.04,11.71217526]
[1750838461740,33.62,147.11,147.06,3.32945896]
[1750838462046,33.62,147.11,147.06,11.71217526]
[1750838462244,36.94945896,147.14,147.06,11.71217526]
[1750838462449,6.7934,147.13,147.06,11.71217526]
[1750838462743,6.7934,147.13,147.1,6.7943]
[1750838463439,6.7934,147.13,147.11,6.7941]
[1750838463944,6.7934,147.13,147.07,8.3827163]
[1750838464744,6.7937,147.12,147.1,6.7943]
[1750838464945,6.7937,147.12,147.07,8.3827163]
[1750838465248,6.7937,147.12,147.09,6.7947]
[1750838466149,6.7942,147.11,147.09,6.7947]
[1750838466948,6.7939,147.12,147.09,6.7947]
[1750838468752,6.7941,147.11,147.08,6.7952]
[1750838469046,6.7941,147.11,147.06,11.71217526]
[1750838469244,6.7939,147.12,147.09,6.795]
[1750838470347,6.7941,147.11,147.08,6.7953]
[1750838470554,36.92945896,147.1,147.04,8.3827163]
[1750838470749,36.92945896,147.1,147.03,49.0311163]
[1750838471255,36.92945896,147.1,147.06,6.7963]
[1750838471851,6.7953,147.09,147.06,6.7963]
[1750838472455,6.7956,147.08,147.05,6.7966]
[1750838473951,36.92945896,147.1,147.04,6.7971]
[1750838474155,3.32945896,147.08,147.04,6.7971]
[1750838474858,6.7963,147.07,147.04,6.7971]
[1750838475351,3.32945896,147.08,147.04,6.7971]
[1750838476356,6.796,147.07,147.04,6.7971]
[1750838478953,6.796,147.07,147.05,6.7969]
[1750838480558,6.796,147.07,147.04,6.7971]
[1750838482360,6.796,147.07,147.05,6.7968]
[1750838487267,10.12515896,147.08,147.06,6.7961]
[1750838488663,6.7957,147.08,147.06,6.7961]
[1750838489060,3.32945896,147.09,147.03,4.635]
[1750838489258,3.32945896,147.09,147.0,36.92945896]
[1750838489758,6.7964,147.06,147.04,6.7971]
[1750838494165,6.7964,147.06,147.03,6.7975]
[1750838494566,6.7969,147.05,147.03,6.7975]
[1750838497464,6.7973,147.04,147.02,6.798]
[1750838498065,33.6,147.06,147.0,36.92945896]
[1750838498765,33.6,147.06,147.05,6.7969]
[1750838510377,33.6,147.06,147.04,6.7969]
[1750838510579,33.6,147.06,147.0,33.6]
[1750838510976,33.6,147.06,147.04,6.797]
[1750838511277,40.3965,147.06,147.04,6.797]
[1750838513281,33.6,147.06,147.0,36.927606]
[1750838514282,33.6,147.06,147.05,6.7969]
[1750838514778,33.6,147.06,147.04,6.7972]
[1750838515383,33.6,147.06,147.0,36.927606]
[1750838516182,33.6,147.06,147.04,6.7971]
[1750838518184,33.6,147.06,147.05,6.7969]
[1750838518384,40.3964,147.06,147.0,36.927606]
[1750838518585,33.6,147.06,147.0,33.6]
[1750838520189,33.6,147.06,147.04,6.797]
[1750838520989,33.6,147.06,147.05,6.7969]
[1750838521181,37.90581523,147.06,147.05,6.7969]
[1750838522079,37.90582626,147.06,147.05,6.7969]
[1750838523292,37.90582626,147.06,147.04,6.7971]
[1750838523591,33.6,147.06,147.04,6.7971]
[1750838524394,40.3965,147.06,147.04,6.7971]
[1750838524697,33.6,147.06,147.0,33.6]
[1750838524892,7.63360955,147.05,146.99,6.815]
[1750838525194,4.30603083,147.04,147.0,6.799]
[1750838525396,3.327606,147.05,147.0,6.799]
[1750838525697,7.63441952,147.04,147.0,6.799]
[1750838525898,6.7981,147.03,147.01,6.7987]
[1750838527002,6.7981,147.03,147.0,6.799]
[1750838527199,7.63238057,147.02,146.97,33.6]
[1750838527399,3.33018015,147.02,146.97,33.6]
[1750838527587,6.7981,147.03,146.97,33.6]
[1750838527994,6.7981,147.03,147.0,6.7989]
[1750838530809,6.7981,147.03,147.01,6.7986]
[1750838533706,11.09360417,147.03,147.01,6.7986]
[1750838534208,2.13136288,147.02,147.01,6.7986]
[1750838534910,8.92976288,147.02,146.97,33.6]
[1750838535110,2.13136288,147.0,146.95,2.3885]
[1750838535315,2.13136288,147.0,146.96,2.13136288]
[1750838535612,2.13136288,147.0,146.99,6.29126711]
[1750838536005,2.13136288,147.0,146.98,8.38759882]
[1750838536507,2.13136288,147.0,146.99,6.28930223]
[1750838538210,2.13136288,147.0,146.99,13.08890223]
[1750838538799,2.13136288,147.0,146.99,6.28930223]
[1750838539413,8.93056288,147.0,146.99,6.28930223]
[1750838539614,6.42392087,147.0,146.96,6.28930223]
[1750838539814,8.93196288,146.97,146.96,6.28930223]
[1750838540208,2.13136288,146.97,146.95,6.28930223]
[1750838540412,2.13136288,146.96,146.94,13.09110223]
[1750838540717,2.13136288,146.95,146.94,13.09110223]
[1750838542104,2.13136288,146.95,146.94,6.28930223]
[1750838542304,3.33356095,146.96,146.93,6.28930223]
[1750838542717,6.8017,146.95,146.93,6.28930223]
[1750838543114,6.8017,146.95,146.92,6.28930223]
[1750838543608,6.8017,146.95,146.93,6.8022]
[1750838548620,36.93356095,146.94,146.9,6.28930223]
[1750838548812,36.93356095,146.94,146.89,6.28930223]
[1750838548813,33.6,146.93,146.89,6.28930223]
[1750838549016,33.6,146.93,146.9,6.8036]
[1750838549317,40.4028,146.93,146.9,6.8036]
[1750838549718,33.6,146.93,146.9,6.8036]
[1750838551217,40.4027,146.93,146.9,6.8036]
[1750838551816,6.803,146.92,146.89,6.8041]
[1750838552116,3.33356095,146.92,146.89,6.8041]
[1750838552316,6.8037,146.91,146.86,6.28930223]
[1750838552619,3.33356095,146.92,146.88,6.8045]
[1750838553218,6.8034,146.91,146.89,6.8043]
[1750838555728,6.8034,146.91,146.88,6.8045]
[1750838556029,3.33356095,146.9,146.85,13.08570223]
[1750838556522,6.804,146.9,146.85,13.08570223]
[1750838556911,6.804,146.9,146.85,6.7964]
[1750838557114,6.804,146.9,146.87,6.8048]
[1750838557314,6.8045,146.89,146.85,6.7964]
[1750838557718,43.73806095,146.89,146.85,6.7964]
[1750838557915,6.8047,146.88,146.86,6.8054]
[1750838558626,43.73806095,146.89,146.86,6.8054]
[1750838558926,43.73806095,146.89,146.87,6.8051]
[1750838560121,43.73806095,146.89,146.86,6.8053]
[1750838560522,36.93356095,146.89,146.85,6.7964]
[1750838560724,36.93356095,146.89,146.88,6.8047]
[1750838561317,33.6,146.89,146.88,6.8047]
[1750838563923,33.6,146.89,146.85,6.7964]
[1750838564130,6.8049,146.88,146.85,6.7964]
[1750838564521,36.93356095,146.89,146.85,13.6024]
[1750838564723,6.8051,146.88,146.85,13.6024]
[1750838565425,6.8053,146.87,146.85,13.6024]
[1750838565630,36.93356095,146.89,146.84,6.8064]
[1750838566325,3.33356095,146.87,146.84,6.8064]
[1750838567025,33.6,146.89,146.81,3.33356095]
[1750838567336,33.6,146.89,146.83,3.33356095]
[1750838567523,6.805,146.88,146.84,7.157]
[1750838567926,6.805,146.88,146.86,6.8056]
[1750838568233,33.6,146.89,146.86,6.8056]
[1750838568234,40.4045,146.89,146.86,6.8056]
[1750838568435,33.6,146.89,146.86,6.8056]
[1750838569833,6.8048,146.88,146.86,6.8056]
[1750838571631,6.8048,146.88,146.85,6.8059]
[1750838571835,33.6,146.89,146.85,6.8059]
[1750838572832,6.8051,146.88,146.85,6.8059]
[1750838573731,33.6,146.89,146.85,6.8059]
[1750838573932,3.33356095,146.88,146.82,33.6]
[1750838574136,3.33356095,146.86,146.81,6.28930223]
[1750838574432,3.33356095,146.86,146.83,6.8067]
[1750838574827,10.13956095,146.86,146.83,6.8067]
[1750838576939,6.8062,146.85,146.83,6.8067]
[1750838577235,3.33356095,146.87,146.84,6.8066]
[1750838577537,6.8057,146.86,146.84,6.8066]
[1750838581142,6.8061,146.85,146.83,13.09610223]
[1750838581548,3.33356095,146.87,146.83,6.28930223]
[1750838581745,6.806,146.86,146.84,6.8064]
[1750838582641,6.8061,146.85,146.83,13.09620223]
[1750838583140,6.8061,146.85,146.84,6.8066]
[1750838583339,3.33356095,146.87,146.84,6.8066]
[1750838583340,6.8059,146.86,146.84,6.8066]
[1750838583937,6.8059,146.86,146.84,13.09590223]
[1750838584345,10.13916095,146.87,146.85,6.8061]
[1750838585453,6.8056,146.87,146.85,13.09540223]
[1750838585749,3.33356095,146.88,146.85,6.28930223]
[1750838586449,37.78710923,146.89,146.86,6.28930223]
[1750838586846,44.59160923,146.89,146.87,6.805]
[1750838587244,7.52067018,146.88,146.85,6.28930223]
[1750838587448,6.8059,146.86,146.84,6.28930223]
[1750838588649,6.8061,146.85,146.84,6.28930223]
[1750838589554,6.8066,146.84,146.83,6.28930223]
[1750838590856,3.33356095,146.84,146.81,6.28930223]
[1750838591158,3.33356095,146.82,146.81,6.28930223]
[1750838591356,3.33356095,146.82,146.79,6.28930223]
[1750838591761,7.53409167,146.82,146.79,6.28930223]
[1750838592051,6.8084,146.8,146.79,6.28930223]
[1750838593054,10.14196095,146.8,146.79,6.28930223]
[1750838594259,4.19965312,146.84,146.79,6.28930223]
[1750838594461,3.33356095,146.85,146.8,6.28930223]
[1750838594656,4.19965312,146.84,146.8,6.28930223]
[1750838594856,6.8077,146.82,146.8,6.28930223]
[1750838595252,6.8079,146.82,146.8,6.28930223]
[1750838595448,3.33356095,146.83,146.79,6.28930223]
[1750838595762,3.33356095,146.81,146.78,6.28930223]
[1750838595960,37.17356095,146.81,146.78,6.28930223]
[1750838597563,6.8084,146.8,146.78,6.28930223]
[1750838598260,6.8089,146.79,146.78,6.28930223]
[1750838599561,6.8089,146.79,146.77,6.28930223]
[1750838600058,6.8089,146.79,146.78,6.28930223]
[1750838600363,6.8089,146.79,146.77,6.28930223]
[1750838601260,6.8094,146.78,146.76,6.28930223]
[1750838602062,6.8098,146.77,146.76,6.28930223]
[1750838602261,33.84,146.81,146.76,6.28930223]
[1750838602463,3.33356095,146.82,146.76,6.28930223]
[1750838602667,41.36280109,146.84,146.77,6.28930223]
[1750838602863,41.36280109,146.84,146.8,6.808]
[1750838603061,41.36280109,146.84,146.78,6.28930223]
[1750838603559,3.33356095,146.82,146.78,6.28930223]
[1750838603862,3.33356095,146.79,146.76,6.28930223]
[1750838604158,3.33356095,146.79,146.71,12.58281279]
[1750838604159,6.8103,146.76,146.75,6.28930223]
[1750838604562,37.17356095,146.77,146.73,6.28930223]
[1750838604766,3.33356095,146.74,146.73,6.28930223]
[1750838605165,3.33356095,146.74,146.72,6.28930223]
[1750838606261,3.33356095,146.74,146.72,13.10120223]
[1750838606462,3.33356095,146.74,146.72,6.8119]
[1750838606660,3.33356095,146.76,146.71,6.28930223]
[1750838606965,3.33356095,146.79,146.74,6.28930223]
[1750838607766,3.33356095,146.79,146.75,6.28930223]
[1750838607969,3.33356095,146.77,146.73,6.28930223]
[1750838608159,37.19356095,146.76,146.74,6.28930223]
[1750838608365,3.33356095,146.76,146.74,6.28930223]
[1750838608664,10.14396095,146.76,146.74,13.10030223]
[1750838608866,3.33356095,146.76,146.74,13.10030223]
[1750838609167,3.33356095,146.76,146.74,6.28930223]
[1750838609366,3.33356095,146.76,146.74,13.10030223]
[1750838611166,10.14386095,146.76,146.74,13.10030223]
[1750838611362,10.14386095,146.76,146.74,6.28930223]
[1750838611671,10.14386095,146.76,146.73,13.10080223]
[1750838611865,6.8103,146.76,146.74,6.28930223]
[1750838612067,6.8103,146.76,146.74,13.10050223]
[1750838612265,6.8103,146.76,146.74,6.28930223]
[1750838612466,6.8103,146.76,146.73,6.28930223]
[1750838612671,6.8103,146.76,146.73,13.10070223]
[1750838613771,6.8103,146.76,146.74,6.8112]
[1750838614075,6.8103,146.76,146.74,13.10050223]
[1750838615071,44.00366095,146.77,146.75,6.8107]